bitfinex-derivatives/quotes_ETHF0:USTF0_20210109
["timestamp","ask_amount","ask_price","bid_price","bid_amount"]
[1610173363007,4.00959,1181.4,1181.0,2.127]
[1610173363206,4.00959,1181.4,1181.3,50.0]
[1610173363406,21.8090122,1181.7,1181.3,50.0]
[1610173363808,25.23298123,1181.9,1181.4,50.0]
[1610173364209,3.405,1181.9,1181.5,50.0]
[1610173364611,3.405,1181.9,1181.4,50.0]
[1610173364808,3.405,1181.9,1181.8,4.00959]
[1610173365009,3.405,1181.9,1181.8,5.89299]
[1610173365210,3.405,1181.9,1181.8,85.89299]
[1610173365411,28.46842759,1182.5,1181.8,85.89299]
[1610173365611,6.811,1182.5,1181.9,50.0]
[1610173365814,1.6889,1182.5,1181.9,50.0]
[1610173366013,12.0,1182.6,1181.9,80.0]
[1610173366212,12.0,1182.6,1182.0,50.0]
[1610173366412,12.0,1182.6,1182.0,80.0]
[1610173366612,12.0,1182.6,1182.1,50.0]
[1610173366812,12.0,1182.6,1182.5,4.00959]
[1610173367012,12.0,1182.6,1182.5,6.29179]
[1610173367215,12.0,1182.6,1182.5,56.29179]
[1610173367614,12.0,1182.6,1182.5,86.29179]
[1610173368013,8.1371,1182.6,1182.5,86.29179]
[1610173369413,8.1371,1182.6,1182.5,56.29179]
[1610173370013,9.8283,1182.6,1182.5,56.29179]
[1610173370215,8.1371,1182.6,1182.5,56.29179]
[1610173371213,8.1371,1182.6,1182.5,86.29179]
[1610173373214,0.2078,1182.6,1182.5,86.29179]
[1610173374016,30.94395523,1183.9,1182.5,86.29179]
[1610173374215,30.96215839,1184.0,1182.5,86.29179]
[1610173374516,21.98118766,1184.0,1182.6,50.0]
[1610173374715,21.98118766,1184.0,1183.9,4.00959]
[1610173374915,30.95859041,1184.1,1183.9,6.27319]
[1610173375116,30.95091714,1184.3,1183.9,6.27319]
[1610173375516,10.97164899,1184.4,1183.9,6.27319]
[1610173375517,30.960457,1184.4,1184.0,50.0]
[1610173375716,30.960457,1184.4,1184.1,50.0]
[1610173375916,21.97997978,1184.4,1184.1,50.0]
[1610173376116,21.97997978,1184.4,1184.0,50.0]
[1610173376316,30.96615182,1184.5,1184.0,50.0]
[1610173376516,21.98466686,1184.5,1184.2,50.0]
[1610173376716,21.98466686,1184.5,1184.4,4.00959]
[1610173376918,8.98293414,1184.5,1184.4,4.00959]
[1610173377119,10.97444618,1184.5,1184.4,4.00959]
[1610173377521,10.97444618,1184.5,1184.4,50.0]
[1610173377522,2.97837757,1184.5,1184.4,50.0]
[1610173377919,12.96129479,1184.6,1184.4,50.0]
[1610173378117,13.42424676,1185.9,1184.5,50.0]
[1610173378118,12.95333019,1184.7,1184.5,50.0]
[1610173378717,18.11614547,1184.7,1184.6,4.00959]
[1610173379119,12.95333019,1184.7,1184.6,54.00959]
[1610173379320,15.9300615,1184.7,1184.6,54.00959]
[1610173379720,1.6674,1184.7,1184.6,54.00959]
[1610173380120,2.98187378,1184.7,1184.6,54.00959]
[1610173380524,12.96504416,1184.8,1184.6,54.00959]
[1610173380723,10.99779384,1184.7,1184.6,4.00959]
[1610173381123,10.99779384,1184.7,1184.6,54.00959]
[1610173381925,12.67599384,1184.7,1184.6,54.00959]
[1610173382126,31.07836822,1184.7,1184.6,54.00959]
[1610173382826,31.10864738,1184.8,1184.6,54.00959]
[1610173383227,31.10864738,1184.8,1184.7,50.0]
[1610173383427,11.02659741,1184.8,1184.7,50.0]
[1610173383827,8.15590628,1184.8,1184.7,50.0]
[1610173384129,13.02537037,1184.9,1184.7,50.0]
[1610173384528,15.01237848,1185.0,1184.8,50.0]
[1610173384730,19.01941957,1184.9,1184.8,50.0]
[1610173384930,19.01941957,1184.9,1184.4,4.00959]
[1610173385131,22.00783958,1184.9,1184.8,50.0]
[1610173385533,22.00783958,1184.9,1184.0,57.6252]
[1610173385834,22.00783958,1184.9,1184.8,50.0]
[1610173386231,22.00783958,1184.9,1184.0,57.6252]
[1610173386631,22.00783958,1184.9,1184.2,50.0]
[1610173386831,13.00044306,1184.7,1184.6,4.00959]
[1610173387231,13.00044306,1184.7,1184.6,54.00959]
[1610173387433,2.98625075,1184.7,1184.6,54.00959]
[1610173387832,2.98625075,1184.7,1184.6,50.0]
[1610173388235,12.97090596,1184.7,1184.6,50.0]
[1610173388733,14.95381894,1184.8,1184.6,50.0]
[1610173388931,4.00959,1184.7,1184.6,50.0]
[1610173389131,5.47158807,1184.7,1184.6,50.0]
[1610173389432,2.4937,1184.7,1184.6,50.0]
[1610173389934,5.47119911,1184.7,1184.6,50.0]
[1610173390132,15.44898256,1184.7,1184.6,50.0]
[1610173390533,18.44399863,1184.7,1184.6,50.0]
[1610173390932,22.45358863,1184.7,1184.6,54.00959]
[1610173391232,22.45358863,1184.7,1184.6,50.0]
[1610173391632,24.16388863,1184.7,1184.6,50.0]
[1610173391832,22.45358863,1184.7,1184.6,50.0]
[1610173392234,9.49830607,1184.7,1184.4,50.0]
[1610173392633,9.49830607,1184.7,1184.0,50.0]
[1610173392634,12.93548988,1184.5,1184.0,50.0]
[1610173392833,12.93548988,1184.5,1184.2,50.0]
[1610173393033,12.92497055,1184.3,1184.2,50.0]
[1610173393234,12.92497055,1184.3,1184.1,50.0]
[1610173393434,12.92497055,1184.3,1183.6,50.0]
[1610173393633,15.91053681,1184.3,1184.2,50.0]
[1610173393837,17.57743681,1184.3,1184.2,50.0]
[1610173394033,17.57743681,1184.3,1183.7,50.0]
[1610173394034,2.98556626,1184.3,1183.7,50.0]
[1610173394233,2.98556626,1184.3,1183.6,50.0]
[1610173394434,10.91981511,1183.8,1183.6,50.0]
[1610173394633,13.37911511,1183.8,1183.0,64.6535]
[1610173394834,4.00959,1183.1,1182.5,2.2822]
[1610173395234,4.00959,1183.1,1182.6,50.0]
[1610173395433,4.00959,1183.1,1182.6,51.6393]
[1610173395632,4.00959,1183.1,1182.6,1.6393]
[1610173395836,4.00959,1183.1,1182.7,50.0]
[1610173396233,25.82255792,1183.1,1182.7,50.0]
[1610173396433,25.82255792,1183.1,1182.3,50.0]
[1610173396633,25.82255792,1183.1,1182.2,50.0]
[1610173396834,4.00959,1182.3,1182.2,50.0]
[1610173397033,4.00959,1182.3,1182.1,2.3455]
[1610173397235,4.00959,1182.3,1181.2,0.25843932]
[1610173397435,4.00959,1182.3,1182.2,50.0]
[1610173397634,4.00959,1182.3,1181.0,0.51687863]
[1610173397635,4.00959,1182.3,1181.7,2.454]
[1610173398034,5.68169,1182.3,1181.7,2.454]
[1610173398234,5.68169,1182.3,1182.2,50.0]
[1610173398436,4.00959,1182.3,1182.2,50.0]
[1610173398635,25.74130185,1182.3,1181.4,2.4345]
[1610173398835,24.15871185,1182.3,1181.5,50.0]
[1610173399036,9.4631,1182.2,1181.5,50.0]
[1610173399236,3.94443028,1182.1,1181.6,50.0]
[1610173399436,21.70667748,1182.1,1181.6,50.0]
[1610173399637,21.69262642,1181.9,1181.5,50.0]
[1610173399837,23.75032642,1181.9,1180.3,70.249]
[1610173400039,21.68558057,1181.8,1180.3,70.249]
[1610173400239,21.68558057,1181.8,1181.2,50.0]
[1610173400438,21.67956055,1181.7,1180.8,2.1935]
[1610173400838,23.38836055,1181.7,1181.4,4.00959]
[1610173401041,1.7088,1181.7,1181.4,4.00959]
[1610173401238,21.65672824,1181.8,1181.4,4.00959]
[1610173401442,23.71596984,1181.9,1181.4,4.00959]
[1610173401743,23.71596984,1181.9,1181.5,50.0]
[1610173402146,3.7488,1181.9,1181.6,50.0]
[1610173402343,1.6911,1181.9,1181.6,50.0]
[1610173402544,1.6911,1181.9,1181.5,50.0]
[1610173402744,1.6911,1181.9,1181.7,50.0]
[1610173402945,1.6911,1181.9,1181.8,4.00959]
[1610173403548,21.68413556,1182.3,1181.8,56.49869]
[1610173403745,14.77636269,1182.4,1181.9,50.0]
[1610173404045,11.34619285,1182.6,1181.9,50.0]
[1610173404046,24.16754881,1182.6,1181.9,50.0]
[1610173404244,21.67144881,1182.6,1182.0,50.0]
[1610173404445,21.67144881,1182.6,1182.1,50.0]
[1610173404845,14.78358588,1182.6,1182.3,4.00959]
[1610173405046,25.67293509,1182.7,1182.3,4.00959]
[1610173405447,25.67293509,1182.7,1182.4,50.0]
[1610173405646,25.67293509,1182.7,1182.5,50.0]
[1610173405847,21.67066205,1182.8,1182.5,50.0]
[1610173406048,21.67066205,1182.8,1182.5,80.0]
[1610173406246,21.67974321,1183.0,1182.5,31.9413]
[1610173406448,21.6653288,1183.1,1182.5,31.9413]
[1610173406646,21.6653288,1183.1,1182.6,50.0]
[1610173406847,14.78407704,1183.2,1182.6,80.0]
[1610173407047,21.68094763,1183.4,1183.0,4.00959]
[1610173407248,21.68094763,1183.4,1183.1,50.0]
[1610173407846,21.68094763,1183.4,1183.0,6.09259]
[1610173407847,21.68094763,1183.4,1183.2,50.0]
[1610173408047,21.67263988,1183.5,1183.2,50.0]
[1610173408246,21.68360563,1183.6,1183.3,50.0]
[1610173408446,21.68360563,1183.6,1183.3,51.7424]
[1610173408648,11.83170008,1183.7,1183.3,51.7424]
[1610173408649,21.69734619,1183.7,1183.3,1.7424]
[1610173408849,21.69734619,1183.7,1183.6,4.00959]
[1610173409048,21.70656222,1183.8,1183.4,50.0]
[1610173409448,8.86876556,1183.9,1183.7,50.0]
[1610173409648,8.86876556,1183.9,1183.8,50.0]
[1610173409848,10.83901465,1183.9,1183.8,50.0]
[1610173410047,15.78871622,1184.0,1183.0,51.8189]
[1610173410249,15.78871622,1184.0,1183.4,20.0]
[1610173410448,15.78005399,1183.9,1183.8,50.0]
[1610173410648,17.52255399,1183.9,1183.8,50.0]
[1610173410849,17.52255399,1183.9,1183.1,50.0]
[1610173411048,18.55037304,1183.9,1183.6,50.0]
[1610173411350,18.55037304,1183.9,1183.2,50.0]
[1610173411548,12.79123209,1183.7,1183.0,4.00959]
[1610173411748,24.0,1182.6,1182.5,1.9413]
[1610173411948,24.0,1182.6,1182.2,1.58]
[1610173412148,24.0,1182.6,1181.5,0.25835938]
[1610173412149,24.0,1182.6,1181.7,62.2087]
[1610173412349,24.0,1182.6,1182.5,50.0]
[1610173412750,24.0,1182.6,1182.1,1.7973]
[1610173412951,28.00959,1182.6,1182.5,50.0]
[1610173413351,28.00959,1182.6,1182.4,50.0]
[1610173413750,28.00959,1182.6,1182.5,50.0]
[1610173414151,28.00959,1182.6,1181.9,50.0]
[1610173414356,30.32179,1182.6,1181.9,50.0]
[1610173414551,30.32179,1182.6,1180.9,0.51692894]
[1610173414552,39.18092083,1182.6,1182.5,50.0]
[1610173414952,49.31461667,1182.6,1181.9,50.0]
[1610173415151,49.31461667,1182.6,1181.3,57.7853]
[1610173415352,49.31461667,1182.6,1181.9,50.0]
[1610173415353,21.67544961,1182.3,1181.9,50.0]
[1610173415552,24.13394961,1182.3,1181.9,50.0]
[1610173415752,21.67173664,1182.2,1181.3,57.7853]
[1610173415953,21.67173664,1182.2,1181.5,50.0]
[1610173416256,21.67173664,1182.2,1181.4,50.0]
[1610173416458,21.69130954,1182.1,1181.4,50.0]
[1610173416656,21.69130954,1182.1,1181.6,50.0]
[1610173416857,21.69130954,1182.1,1181.4,50.0]
[1610173417056,4.00959,1181.7,1181.4,50.0]
[1610173417256,4.00959,1181.7,1181.3,57.7853]
[1610173417457,4.00959,1181.7,1181.5,50.0]
[1610173417860,4.00959,1181.7,1181.1,1.599]
[1610173418257,4.00959,1181.7,1181.5,50.0]
[1610173418258,27.39258266,1181.7,1181.5,50.0]
[1610173418457,27.39258266,1181.7,1181.2,50.0]
[1610173418458,14.80564061,1181.6,1181.2,50.0]
[1610173418659,14.80564061,1181.6,1181.3,50.0]
[1610173418859,21.70269355,1181.5,1181.3,50.0]
[1610173419059,4.00959,1181.4,1181.2,50.0]
[1610173419256,4.00959,1181.4,1180.6,4.00959]
[1610173419257,25.71999653,1181.4,1180.6,4.00959]
[1610173419456,4.00959,1181.4,1181.3,50.0]
[1610173420059,1.67,1181.4,1181.3,50.0]
[1610173420262,1.6391,1181.5,1181.4,50.0]
[1610173420963,5.64869,1181.5,1181.4,50.0]
[1610173421565,7.34729,1181.5,1181.4,50.0]
[1610173421765,29.12841983,1181.5,1181.4,50.0]
[1610173421964,27.42981983,1181.5,1181.4,50.0]
[1610173422365,19.5390545,1181.5,1181.4,50.0]
[1610173422966,73.1462545,1181.5,1181.4,50.0]
[1610173423366,75.72860148,1181.5,1181.4,50.0]
[1610173424266,75.72860148,1181.5,1181.1,50.0]
[1610173424466,75.72860148,1181.5,1180.3,50.0]
[1610173424666,8.872779,1181.2,1180.3,50.0]
[1610173424866,11.141879,1181.2,1180.2,2.2419]
[1610173425067,25.71410073,1181.0,1180.4,50.0]
[1610173425466,14.79756398,1180.9,1180.3,50.0]
[1610173425666,14.79756398,1180.9,1180.2,2.2419]
[1610173425866,21.68896396,1180.9,1180.5,50.0]
[1610173426267,21.67415328,1180.8,1180.4,50.0]
[1610173426469,21.67415328,1180.8,1180.6,50.0]
[1610173426669,21.67415328,1180.8,1180.5,50.0]
[1610173427067,4.00959,1180.6,1180.2,2.2419]
[1610173427268,4.00959,1180.6,1180.3,50.0]
[1610173427668,4.00959,1180.6,1180.4,50.0]
[1610173427868,25.66384724,1180.6,1180.4,50.0]
[1610173428068,25.66384724,1180.6,1179.7,50.0]
[1610173428268,21.64937235,1180.5,1179.3,2.4824]
[1610173428567,21.64937235,1180.5,1179.8,50.0]
[1610173428768,21.64937235,1180.5,1179.4,50.0]
[1610173428967,4.00959,1179.9,1179.8,4.00959]
[1610173429169,4.00959,1179.9,1179.8,54.00959]
[1610173431372,5.68829,1179.9,1179.8,54.00959]
[1610173432373,5.68829,1179.9,1179.8,50.0]
[1610173432774,12.64379,1179.9,1179.8,50.0]
[1610173432975,10.96509,1179.9,1179.8,50.0]
[1610173433374,4.00959,1179.9,1179.8,50.0]
[1610173433774,21.58547772,1179.9,1179.8,50.0]
[1610173433975,56.8925,1179.8,1179.0,1.984]
[1610173434175,21.64611287,1179.8,1179.4,50.0]
[1610173434378,21.64611287,1179.8,1178.1,0.87432366]
[1610173434379,8.08066313,1179.7,1178.5,1.6242]
[1610173434576,23.45857478,1179.7,1179.1,50.0]
[1610173434775,23.45857478,1179.7,1179.5,50.0]
[1610173434976,23.45857478,1179.7,1178.5,1.6242]
[1610173434977,12.84474579,1179.6,1178.5,1.6242]
[1610173435177,14.74583603,1179.3,1179.1,50.0]
[1610173435576,21.60684164,1179.2,1178.6,50.0]
[1610173435776,21.60684164,1179.2,1178.8,50.0]
[1610173435976,21.6132462,1179.3,1178.8,52.3719]
[1610173436176,8.82802219,1179.4,1178.8,2.3719]
[1610173436177,21.62787942,1179.4,1178.8,2.3719]
[1610173436577,21.66114596,1179.6,1178.9,50.0]
[1610173436983,21.69244686,1179.8,1179.5,4.00959]
[1610173437178,21.69244686,1179.8,1179.5,5.68219]
[1610173437378,21.68588457,1179.7,1179.5,5.68219]
[1610173437782,21.72403842,1179.8,1179.6,50.0]
[1610173437982,21.72403842,1179.8,1179.7,50.0]
[1610173438182,21.7385008,1180.0,1179.7,50.0]
[1610173438381,21.7385008,1180.0,1179.6,50.0]
[1610173438583,21.729934,1179.9,1179.6,50.0]
[1610173438783,21.72910715,1179.8,1179.7,50.0]
[1610173438982,25.73869715,1179.8,1179.6,50.0]
[1610173439383,25.73869715,1179.8,1179.7,50.0]
[1610173439783,25.73869715,1179.8,1179.6,50.0]
[1610173439984,25.74204436,1179.8,1179.7,50.0]
[1610173440184,12.88657722,1179.8,1179.7,50.0]
[1610173440383,12.88657722,1179.8,1179.6,50.0]
[1610173440584,15.99506593,1179.8,1179.6,50.0]
[1610173440784,15.99506593,1179.8,1179.1,2.4395]
[1610173440988,15.99506593,1179.8,1179.7,50.0]
[1610173441388,15.99506593,1179.8,1179.2,50.0]
[1610173441788,15.99506593,1179.8,1179.7,50.0]
[1610173441988,8.87698722,1179.8,1179.3,50.0]
[1610173442191,18.19321344,1179.8,1179.3,50.0]
[1610173442389,21.77408547,1179.8,1179.2,50.0]
[1610173442588,21.79329912,1180.0,1179.2,50.0]
[1610173442789,21.79329912,1180.0,1179.4,50.0]
[1610173442990,21.79329912,1180.0,1179.9,4.00959]
[1610173443190,21.79873631,1180.3,1179.9,6.41469]
[1610173443589,21.79873631,1180.3,1179.9,56.41469]
[1610173443989,21.79873631,1180.3,1180.0,50.0]
[1610173444189,30.68966923,1180.4,1180.1,50.0]
[1610173444490,34.73176605,1180.6,1180.1,50.0]
[1610173444692,34.73176605,1180.6,1180.0,50.0]
[1610173444891,34.73176605,1180.6,1179.9,6.41469]
[1610173445091,34.73176605,1180.6,1180.2,50.0]
[1610173445292,4.00959,1180.6,1180.2,2.261]
[1610173445491,4.00959,1180.6,1180.3,50.0]
[1610173446091,4.00959,1180.6,1180.4,50.0]
[1610173446295,25.84389678,1180.6,1180.2,52.261]
[1610173446593,10.41618302,1180.3,1180.2,52.261]
[1610173446793,21.79142608,1180.3,1180.2,52.261]
[1610173446994,25.80101608,1180.3,1180.2,2.261]
[1610173447194,25.80101608,1180.3,1180.2,52.261]
[1610173447394,34.69496025,1180.3,1180.2,50.0]
[1610173447793,16.01056673,1180.3,1180.2,50.0]
[1610173448193,16.01056673,1180.3,1180.1,50.0]
[1610173448395,17.97510028,1180.3,1180.0,50.0]
[1610173448594,17.97510028,1180.3,1180.1,50.0]
[1610173448794,13.95867066,1180.2,1180.1,50.0]
[1610173448995,13.95867066,1180.2,1180.0,50.0]
[1610173449193,11.98142655,1180.2,1180.0,50.0]
[1610173449397,21.7016527,1180.2,1180.1,50.0]
[1610173449994,21.7016527,1180.2,1180.0,50.0]
[1610173450194,21.67898417,1180.3,1180.0,50.0]
[1610173450394,21.67982897,1180.5,1180.1,50.0]
[1610173450794,21.66969066,1180.6,1180.0,50.0]
[1610173450994,4.00959,1180.4,1180.3,4.00959]
[1610173451195,4.00959,1180.4,1180.2,50.0]
[1610173451395,4.00959,1180.4,1180.1,50.0]
[1610173451594,4.00959,1180.4,1180.2,50.0]
[1610173451996,4.00959,1180.4,1180.2,1.6735]
[1610173452196,21.64938302,1180.6,1180.3,50.0]
[1610173452398,11.96904411,1180.6,1180.3,50.0]
[1610173452597,21.60693278,1180.7,1180.4,50.0]
[1610173452796,21.60693278,1180.7,1180.3,50.0]
[1610173452997,20.0469761,1180.9,1180.6,4.00959]
[1610173453197,20.0469761,1180.9,1180.6,6.52639]
[1610173453397,8.85350759,1181.0,1180.6,6.52639]
[1610173453398,20.04996011,1181.0,1180.6,6.52639]
[1610173453598,13.16178107,1181.0,1180.7,50.0]
[1610173453997,20.04713002,1181.0,1180.8,50.0]
[1610173454397,20.04713002,1181.0,1180.7,50.0]
[1610173454597,13.13525082,1180.9,1180.6,2.5168]
[1610173455000,20.006686,1180.9,1180.8,50.0]
[1610173455199,12.77027071,1180.8,1180.7,50.0]
[1610173455399,19.97589718,1180.8,1180.6,2.5168]
[1610173455798,19.97589718,1180.8,1180.7,50.0]
[1610173456000,19.94684617,1180.9,1180.7,50.0]
[1610173456200,2.69023183,1180.9,1180.8,50.0]
[1610173456401,19.94725323,1181.0,1180.8,50.0]
[1610173456599,13.08727866,1181.1,1180.8,50.0]
[1610173456999,19.92870328,1181.2,1180.7,54.00959]
[1610173457201,13.07951486,1181.2,1180.9,50.0]
[1610173457400,13.07951486,1181.2,1180.9,52.3457]
[1610173457602,13.07951486,1181.2,1181.0,50.0]
[1610173458001,13.07951486,1181.2,1181.1,50.0]
[1610173458300,13.07951486,1181.2,1181.0,50.0]
[1610173458700,19.91147338,1181.2,1181.1,50.0]
[1610173459103,13.07951486,1181.2,1181.0,50.0]
[1610173459402,19.92177257,1181.2,1181.1,50.0]
[1610173459601,19.92177257,1181.2,1181.0,50.0]
[1610173459803,9.94717498,1181.2,1181.0,50.0]
[1610173460001,11.89806673,1181.2,1181.1,50.0]
[1610173460204,75.55256673,1181.2,1181.1,50.0]
[1610173460402,66.75941727,1181.2,1181.0,50.0]
[1610173460802,27.31287922,1181.1,1180.9,2.3457]
[1610173461002,4.00959,1181.0,1180.6,50.0]
[1610173461503,10.73244774,1180.7,1180.5,50.0]
[1610173461703,60.14364774,1180.7,1180.3,50.0]
[1610173461904,49.4112,1180.7,1180.3,50.0]
[1610173462103,49.4112,1180.7,1180.4,50.0]
[1610173462303,10.72720643,1180.5,1180.4,50.0]
[1610173462503,10.72720643,1180.5,1180.0,50.0]
[1610173462905,10.72720643,1180.5,1180.4,50.0]
[1610173463105,14.73679643,1180.5,1180.1,50.0]
[1610173463303,14.73679643,1180.5,1180.0,50.0]
[1610173463504,3.1072269,1180.4,1180.0,50.0]
[1610173463703,3.1072269,1180.4,1180.2,50.0]
[1610173463905,6.81603445,1180.3,1180.2,50.0]
[1610173464106,6.81603445,1180.3,1180.1,50.0]
[1610173464305,6.81136618,1180.2,1179.5,4.00959]
[1610173464506,9.9188201,1180.2,1180.1,50.0]
[1610173464906,9.9188201,1180.2,1179.9,50.0]
[1610173464907,6.80154647,1180.0,1179.9,50.0]
[1610173465105,4.00959,1180.0,1179.9,50.0]
[1610173465308,13.91519237,1180.0,1179.9,50.0]
[1610173465507,13.91519237,1180.0,1179.8,50.0]
[1610173465707,20.58515925,1180.0,1179.7,50.0]
[1610173465909,9.89872482,1179.9,1179.7,50.0]
[1610173466107,9.89872482,1179.9,1179.6,2.5032]
[1610173466308,12.95451431,1179.8,1179.6,2.5032]
[1610173466507,12.95451431,1179.8,1179.7,50.0]
[1610173467008,16.96410431,1179.8,1179.7,50.0]
[1610173467411,13.87803268,1179.8,1179.7,50.0]
[1610173467909,7.11763979,1179.8,1179.7,50.0]
[1610173468108,13.87566067,1179.8,1179.7,50.0]
[1610173468311,16.93505134,1179.8,1179.7,50.0]
[1610173469309,4.00959,1179.8,1179.7,50.0]
[1610173472011,12.11095937,1179.8,1179.7,50.0]
[1610173472411,4.00959,1179.8,1179.7,50.0]
[1610173474019,13.91171313,1179.8,1179.7,50.0]
[1610173475019,16.98482979,1179.8,1179.7,50.0]
[1610173476019,22.63821572,1179.8,1179.6,50.0]
[1610173476218,22.63821572,1179.8,1179.3,50.0]
[1610173476421,9.90248929,1179.7,1179.3,50.0]
[1610173476620,12.984901,1179.5,1179.3,50.0]
[1610173477020,6.79658149,1179.5,1179.4,50.0]
[1610173477219,10.80617149,1179.5,1179.3,50.0]
[1610173477418,10.80617149,1179.5,1178.6,1.8708]
[1610173477419,81.71457149,1179.5,1179.2,50.0]
[1610173477619,83.82277149,1179.5,1179.2,50.0]
[1610173477920,12.99234342,1179.3,1178.7,50.0]
[1610173478121,12.99234342,1179.3,1178.8,50.0]
[1610173478520,12.99234342,1179.3,1178.7,50.0]
[1610173478921,19.81380277,1179.4,1178.9,50.0]
[1610173479122,4.00959,1179.0,1178.8,50.0]
[1610173479322,4.00959,1179.0,1178.7,50.0]
[1610173479723,4.00959,1179.0,1178.6,1.8708]
[1610173479724,7.1529,1178.9,1178.6,1.8708]
[1610173479923,7.1529,1178.9,1178.7,50.0]
[1610173480322,7.1529,1178.9,1178.8,50.0]
[1610173480724,7.1529,1178.9,1178.4,50.0]
[1610173480923,7.1529,1178.9,1178.2,50.0]
[1610173481125,4.00959,1178.3,1178.2,50.0]
[1610173481527,4.00959,1178.3,1178.1,4.6249059]
[1610173481727,4.00959,1178.3,1178.2,50.0]
[1610173483831,53.3895,1178.2,1178.1,50.6153159]
[1610173484230,53.3895,1178.2,1178.1,0.6153159]
[1610173484830,67.90264507,1178.2,1178.1,0.6153159]
[1610173485232,23.38176853,1178.2,1178.1,0.6153159]
[1610173485432,3.11215722,1178.2,1178.1,0.6153159]
[1610173485837,8.30065415,1178.2,1178.1,0.6153159]
[1610173486234,15.69567012,1178.2,1178.1,0.6153159]
[1610173486638,12.5835129,1178.2,1178.1,0.6153159]
[1610173487034,15.6967685,1178.2,1178.1,0.6153159]
[1610173487236,3.1132556,1178.2,1178.1,0.6153159]
[1610173487434,62.0501556,1178.2,1178.1,0.6153159]
[1610173487634,74.65109913,1178.2,1178.1,0.6153159]
[1610173488038,88.14220185,1178.2,1178.1,0.6153159]
[1610173488238,29.20530185,1178.2,1178.1,0.6153159]
[1610173488441,16.60435832,1178.2,1178.1,0.6153159]
[1610173488840,3.1132556,1178.2,1178.1,0.6153159]
[1610173489238,17.03587421,1178.2,1178.1,50.6153159]
[1610173489444,12.74738706,1178.3,1178.1,50.6153159]
[1610173489642,10.8084896,1178.3,1178.2,50.0]
[1610173490037,6.7988996,1178.3,1178.2,50.0]
[1610173490238,14.55399972,1178.4,1178.2,50.0]
[1610173490438,14.55399972,1178.4,1178.3,50.0]
[1610173490638,14.55399972,1178.4,1178.3,51.7166]
[1610173490838,14.55399972,1178.4,1178.3,1.7166]
[1610173491040,14.55399972,1178.4,1178.3,51.7166]
[1610173491241,14.55789839,1178.6,1178.3,55.72619]
[1610173491440,14.55840015,1178.8,1178.4,50.0]
[1610173491738,14.55840015,1178.8,1178.5,50.0]
[1610173491939,14.56412488,1178.9,1178.5,50.0]
[1610173492138,21.37418316,1179.0,1178.4,50.0]
[1610173492338,21.37418316,1179.0,1178.6,50.0]
[1610173492638,14.56592859,1179.0,1178.6,2.0016]
[1610173493039,14.56592859,1179.0,1178.7,50.0]
[1610173493239,4.00959,1178.8,1178.6,2.0016]
[1610173493440,4.00959,1178.8,1178.7,50.0]
[1610173494342,18.57797788,1178.8,1178.7,50.0]
[1610173494740,10.81667336,1178.8,1178.7,50.0]
[1610173494943,13.92704394,1178.8,1178.7,50.0]
[1610173496350,15.86443857,1178.8,1178.6,2.0016]
[1610173496748,13.78424705,1178.7,1178.6,2.0016]
[1610173496947,13.78424705,1178.7,1178.6,52.0016]
[1610173498752,13.78424705,1178.7,1178.6,2.0016]
[1610173498950,13.78424705,1178.7,1178.1,0.6153159]
[1610173498951,57.3756,1178.5,1178.1,50.6153159]
[1610173499155,12.71860989,1178.2,1178.1,50.6153159]
[1610173499551,14.64822463,1178.2,1178.1,50.6153159]
[1610173499950,15.82816868,1178.2,1178.1,50.6153159]
[1610173500650,15.82816868,1178.2,1178.1,0.6153159]
[1610173501052,17.755771,1178.2,1178.1,0.6153159]
[1610173501254,7.12161507,1178.2,1178.1,0.6153159]
[1610173501952,17.76316137,1178.2,1178.1,0.6153159]
[1610173503555,15.85816815,1178.2,1178.1,0.6153159]
[1610173503757,7.12161507,1178.2,1178.1,0.6153159]
[1610173505057,7.12161507,1178.2,1178.1,50.6153159]
[1610173505257,17.80155512,1178.2,1178.1,50.6153159]
[1610173505456,12.75031931,1178.2,1178.1,50.6153159]
[1610173505656,7.66131931,1178.2,1178.1,50.6153159]
[1610173505856,2.31531931,1178.2,1178.1,50.6153159]
[1610173506057,3.11139658,1178.2,1178.1,50.6153159]
[1610173506258,9.91415684,1178.2,1178.1,50.6153159]
[1610173506458,14.58155192,1178.6,1178.1,0.6153159]
[1610173506856,8.29560032,1178.9,1178.1,0.6153159]
[1610173506857,14.35109221,1178.8,1178.2,50.0]
[1610173507056,14.35109221,1178.8,1178.2,52.0921]
[1610173507256,4.00959,1178.5,1178.2,6.10169]
[1610173507457,4.00959,1178.5,1178.2,2.0921]
[1610173507659,4.00959,1178.5,1178.3,50.0]
[1610173507858,4.00959,1178.5,1178.2,52.0921]
[1610173508060,4.00959,1178.5,1178.2,2.0921]
[1610173508259,9.47174915,1178.6,1178.4,50.0]
[1610173508458,14.34233421,1178.7,1178.4,50.0]
[1610173508658,14.34233421,1178.7,1178.2,2.0921]
[1610173508962,17.75874148,1179.0,1178.5,50.0]
[1610173509159,17.75874148,1179.0,1178.9,4.00959]
[1610173509362,11.31974148,1179.0,1178.9,5.68079]
[1610173509760,9.47695513,1179.2,1178.9,55.68079]
[1610173509964,9.46821244,1179.3,1178.9,55.68079]
[1610173510161,9.46821244,1179.3,1179.0,50.0]
[1610173510360,9.45177401,1179.4,1179.1,50.0]
[1610173510560,9.44052296,1179.3,1179.1,50.0]
[1610173510962,9.43447177,1179.4,1179.0,50.0]